bitfinex/quotes_ETHUSD_20250517
["timestamp","ask_amount","ask_price","bid_price","bid_amount"]
[1747466178688,10.08,2500.3,2500.0,4.0]
[1747466178872,0.55,2500.6,2500.1,4.81826085]
[1747466179057,8.55,2500.6,2500.2,7.565]
[1747466179262,0.55,2500.4,2500.2,7.565]
[1747466183883,10.08,2500.5,2500.3,3.99950104]
[1747466184604,10.08,2500.5,2500.2,11.56459075]
[1747466184775,10.08,2500.5,2500.4,3.9993601]
[1747466184971,0.55,2500.7,2500.4,3.9993601]
[1747466185190,0.55,2500.7,2500.5,0.7962]
[1747466186007,0.55,2500.7,2500.3,3.99946171]
[1747466186671,3.99928065,2500.5,2500.4,7.564]
[1747466187211,4.54928065,2500.5,2500.0,4.79609258]
[1747466187382,4.54928065,2500.5,2500.4,7.564]
[1747466187569,4.54928065,2500.5,2500.0,4.79609258]
[1747466187777,4.54928065,2500.5,2500.1,7.564]
[1747466187977,5.7356263,2500.5,2499.8,4.00023827]
[1747466188176,4.5494962,2500.4,2499.9,11.56413915]
[1747466188875,0.55,2500.4,2500.0,3.99996802]
[1747466189076,0.55,2500.5,2500.1,4.79597889]
[1747466189408,0.55,2500.5,2500.2,3.99966279]
[1747466189714,6.07037393,2500.5,2500.1,0.7962]
[1747466189916,4.65177169,2500.4,2500.2,7.564]
[1747466190208,0.6524,2500.4,2500.2,7.564]
[1747466190412,2.07117021,2500.5,2500.2,7.564]
[1747466190612,10.08,2500.4,2500.2,7.564]
[1747466192415,10.08,2500.4,2500.2,12.35975797]
[1747466192716,10.08,2500.4,2500.3,3.99952005]
[1747466193576,14.07841452,2501.0,2500.5,3.99911676]
[1747466193779,0.55,2500.9,2500.5,3.99911676]
[1747466194520,10.08,2500.8,2500.7,3.99887502]
[1747466194715,10.08,2500.8,2500.7,11.55887502]
[1747466196718,10.08,2500.8,2500.7,14.4820047]
[1747466198716,19.91036228,2501.5,2501.1,3.99824077]
[1747466198717,10.08,2501.2,2501.1,3.99824077]
[1747466198918,10.08,2501.4,2501.1,11.55724077]
[1747466199291,10.08,2501.4,2501.3,3.99792108]
[1747466199501,10.08,2501.4,2501.2,3.99800004]
[1747466200708,10.08,2501.4,2501.2,5.23397584]
[1747466200906,10.08,2501.4,2501.1,11.5571829]
[1747466201933,10.08,2501.4,2500.8,0.7607]
[1747466202104,3.99814865,2501.2,2500.9,7.559]
[1747466202294,4.54824077,2501.1,2501.0,7.559]
[1747466202500,14.62824077,2501.1,2501.0,7.559]
[1747466203300,0.6524,2501.0,2500.6,17.27]
[1747466203500,0.6524,2501.0,2500.7,7.559]
[1747466203501,3.9987204,2500.8,2500.7,7.559]
[1747466203719,14.07863171,2500.9,2500.7,7.559]
[1747466205227,4.5488114,2500.8,2500.6,17.27]
[1747466205432,15.28128031,2500.7,2500.6,17.27]
[1747466205637,15.28128031,2500.7,2500.6,24.829]
[1747466205638,17.26428051,2500.7,2500.6,24.829]
[1747466206127,17.26428051,2500.7,2500.6,17.27]
[1747466206910,4.00011716,2500.0,2499.9,7.559]
[1747466207123,10.08,2500.0,2499.9,7.559]
[1747466207430,14.08,2500.0,2499.9,7.559]
[1747466208008,14.63,2500.0,2499.9,7.559]
[1747466208600,0.55,2499.9,2499.8,17.266]
[1747466208834,10.63,2499.9,2499.8,24.825]
[1747466211738,24.74556,2499.9,2499.8,24.826]
[1747466211941,4.00096023,2499.4,2499.3,7.56]
[1747466212140,20.76136023,2499.4,2499.3,7.56]
[1747466212637,0.55,2498.8,2498.5,7.56]
[1747466212835,10.08,2498.7,2498.5,7.56]
[1747466216142,10.08,2498.7,2498.6,4.80444125]
[1747466216726,10.08,2498.7,2498.6,0.8022]
[1747466217034,10.08,2498.7,2498.6,7.562]
[1747466217241,10.08,2498.7,2498.3,4.80476541]
[1747466217550,10.08,2498.8,2498.4,7.562]
[1747466218010,10.08,2498.8,2498.4,11.56444152]
[1747466218308,10.08,2498.8,2498.5,4.00239865]
[1747466218507,10.08,2498.8,2498.4,11.56447617]
[1747466219448,14.08194015,2498.8,2498.4,7.562]
[1747466219647,10.08,2498.8,2498.4,11.56454578]
[1747466219810,4.00211201,2498.7,2498.3,0.8022]
[1747466220016,11.84491747,2498.8,2498.5,7.563]
[1747466220514,15.84691149,2498.8,2498.5,7.563]
[1747466220732,8.55,2498.7,2498.6,7.563]
[1747466221058,14.63240144,2498.5,2498.4,7.563]
[1747466221279,16.95064158,2498.5,2498.4,7.563]
[1747466221558,4.55256784,2498.4,2497.9,4.82433669]
[1747466221767,0.6524,2498.2,2497.7,7.563]
[1747466221906,0.6524,2498.2,2497.8,4.00349816]
[1747466222117,0.6524,2498.2,2497.7,7.563]
[1747466222118,0.6524,2498.2,2497.9,4.00334399]
[1747466222315,10.08,2498.3,2498.2,4.00288207]
[1747466222515,10.08,2498.4,2498.3,4.00272185]
[1747466222718,10.08,2499.1,2498.7,4.00195918]
[1747466222919,10.08,2499.1,2498.8,7.562]
[1747466223333,10.08,2499.1,2498.8,8.383]
[1747466223629,10.08,2499.1,2499.0,4.00160064]
[1747466223827,10.08,2499.1,2498.9,4.00173701]
[1747466223828,10.08,2499.1,2498.9,4.00167796]
[1747466224233,10.08,2499.1,2499.0,7.562]
[1747466225162,10.08,2499.1,2499.0,11.56360064]
[1747466226529,10.08,2499.3,2499.1,4.0014191]
[1747466226832,0.55,2499.2,2498.8,0.821]
[1747466227036,1.2024,2499.2,2498.9,7.562]
[1747466228052,1.2024,2499.2,2498.7,4.00198857]
[1747466228357,1.2024,2499.2,2498.8,11.56391443]
[1747466228561,1.2024,2499.2,2498.8,7.562]
[1747466228766,2.83156358,2499.2,2498.8,7.562]
[1747466228951,2.83156358,2499.2,2498.8,11.56390357]
[1747466229764,0.55,2499.0,2498.8,7.562]
[1747466231165,10.08,2499.1,2498.8,11.56388671]
[1747466231459,10.08,2499.1,2499.0,4.00160064]
[1747466231763,10.08,2499.1,2498.8,11.5638531]
[1747466232062,10.08,2499.1,2498.8,8.3257]
[1747466232358,15.48959315,2499.1,2498.6,4.0021686]
[1747466232563,10.08,2499.0,2498.9,7.562]
[1747466233654,22.63160064,2499.0,2498.9,7.562]
[1747466235164,18.63,2499.0,2498.9,7.562]
[1747466236241,22.63160064,2499.0,2498.9,7.562]
[1747466236457,25.50094937,2499.0,2498.9,7.562]
[1747466237471,0.55,2498.7,2498.3,18.0338]
[1747466237638,4.0023174,2498.6,2498.4,7.562]
[1747466237943,10.63,2498.5,2498.4,7.562]
[1747466239060,4.55256163,2498.4,2498.3,17.278]
[1747466239258,5.61556163,2498.4,2498.3,24.84]
[1747466240654,23.69556163,2498.4,2498.3,24.84]
[1747466240970,0.55,2498.2,2497.7,4.75374949]
[1747466241157,0.55,2498.2,2497.8,7.563]
[1747466241158,4.55301853,2498.2,2497.8,7.563]
[1747466242670,4.00311098,2498.1,2497.8,7.563]
[1747466243063,0.55,2497.9,2497.8,7.563]
[1747466243642,10.08,2498.0,2497.8,7.563]
[1747466244177,0.55,2497.9,2497.6,17.28]
[1747466244477,4.00354028,2497.8,2497.7,7.563]
[1747466245179,4.55354028,2497.8,2497.7,7.563]
[1747466245375,0.55,2497.8,2497.7,7.563]
[1747466246474,4.5535231,2497.8,2497.7,7.563]
[1747466246660,14.6335231,2497.8,2497.7,7.563]
[1747466246866,12.15991431,2497.8,2497.7,7.563]
[1747466247752,10.08,2497.8,2497.7,7.563]
[1747466250550,0.55,2497.9,2497.7,7.563]
[1747466251277,4.0033646,2497.9,2497.7,7.563]
[1747466251482,4.5535231,2497.8,2497.7,7.563]
[1747466251778,12.65567388,2498.0,2497.7,7.563]
[1747466251972,2.82356739,2497.9,2497.7,7.563]
[1747466254380,6.82695652,2497.9,2497.7,7.563]
[1747466254585,2.82356739,2497.9,2497.7,7.563]
[1747466255587,6.82703428,2497.9,2497.7,7.563]
[1747466256365,2.82356739,2497.9,2497.7,7.563]
[1747466256685,10.63,2497.8,2497.7,7.563]
[1747466260190,10.08,2497.8,2497.7,7.563]
[1747466260390,10.08,2497.8,2497.7,15.27096878]
[1747466261090,10.08,2497.8,2497.7,7.563]
[1747466263496,10.08,2497.8,2497.6,21.28376545]
[1747466263794,10.08,2497.8,2497.7,7.566]
[1747466264894,14.63362089,2497.8,2497.7,7.566]
[1747466265767,14.63362089,2497.8,2497.6,17.28]
[1747466265975,16.56256103,2497.8,2497.7,7.566]
[1747466266387,16.56256103,2497.8,2497.6,17.28]
[1747466266569,16.56256103,2497.8,2497.7,7.566]
[1747466267197,4.55368338,2497.7,2497.6,17.28]
[1747466267397,14.63368338,2497.7,2497.6,17.28]
[1747466267601,16.75554782,2497.7,2497.6,17.28]
[1747466267792,16.75554782,2497.7,2497.6,24.846]
[1747466271399,17.39070908,2497.7,2497.6,24.846]
[1747466272105,13.3870257,2497.7,2497.6,24.846]
[1747466272272,11.26516126,2497.7,2497.6,24.846]
[1747466273810,10.63,2497.7,2497.6,24.846]
[1747466276222,14.63368338,2497.7,2497.6,24.846]
[1747466276631,14.63368338,2497.7,2497.6,17.28]
[1747466279035,14.63368338,2497.7,2497.5,7.567]
[1747466279337,4.55384368,2497.6,2497.5,7.567]
[1747466280626,12.55384368,2497.6,2497.5,7.567]
[1747466281903,0.55,2497.5,2497.3,7.567]
[1747466283208,10.08,2497.7,2497.3,7.567]
[1747466283409,14.08370263,2497.7,2497.4,0.7503]
[1747466283595,10.08,2497.6,2497.4,0.7503]
[1747466284338,10.08,2497.6,2497.4,4.75441102]
[1747466284717,10.08,2497.6,2497.4,4.75437477]
[1747466285737,10.08,2497.6,2497.4,0.7503]
[1747466285942,10.08,2497.6,2497.4,4.75444915]
[1747466286152,10.08,2497.7,2497.6,4.00384368]
[1747466286301,10.08,2497.7,2497.6,12.31914368]
[1747466288522,10.08,2498.3,2498.2,4.81108207]
[1747466288839,10.08,2498.5,2498.4,4.81076163]
[1747466289957,10.08,2498.5,2498.4,7.565]
[1747466290526,10.08,2498.5,2498.2,17.287]
[1747466290862,0.55,2498.4,2498.3,7.565]
[1747466291245,4.55256163,2498.4,2498.3,7.565]
[1747466291443,6.41604704,2498.4,2498.3,7.565]
[1747466291860,2.41348541,2498.4,2498.3,7.565]
[1747466292549,12.49348541,2498.4,2498.3,7.565]
[1747466292758,12.49348541,2498.4,2498.2,17.287]
[1747466292759,14.63272185,2498.3,2498.2,17.287]
[1747466292929,12.55304231,2498.1,2498.0,7.564]
[1747466293249,13.20544231,2498.1,2498.0,7.564]
[1747466295229,4.00326328,2498.0,2497.5,21.28900349]
[1747466295543,8.6524,2498.1,2497.6,7.564]
[1747466295750,2.99953415,2498.0,2497.6,7.564]
[1747466295945,4.0034401,2497.9,2497.6,7.564]
[1747466296652,7.00282035,2498.0,2497.6,7.564]
[1747466296963,4.0036909,2497.7,2497.5,17.285]
[1747466297170,10.08,2497.6,2497.5,17.285]
[1747466297374,10.08,2497.6,2497.5,24.849]
[1747466300656,10.08,2497.6,2497.5,32.54653577]
[1747466301650,8.0,2497.8,2497.6,4.00373138]
[1747466301852,8.0,2497.8,2497.5,29.66112848]
[1747466302065,10.08,2497.9,2497.7,4.00355605]
[1747466302272,10.08,2497.9,2497.8,4.0035231]
[1747466302752,10.08,2497.9,2497.8,4.8075231]
[1747466302948,10.08,2497.9,2497.8,5.68864108]
[1747466303148,10.71915884,2498.4,2497.8,1.68511798]
[1747466303356,10.08,2498.3,2498.0,4.00317236]
[1747466303554,10.08,2498.3,2498.1,7.565]
[1747466304285,10.08,2498.3,2497.4,4.00403911]
[1747466304286,4.6555237,2498.1,2497.6,4.00383125]
[1747466304445,4.6555237,2498.1,2497.6,11.56883125]
[1747466304641,0.6524,2498.1,2497.7,4.00366986]
[1747466304845,0.6524,2498.1,2497.7,4.00360806]
[1747466305057,0.55,2498.2,2497.8,4.00351823]
[1747466305239,4.55290544,2498.2,2497.7,4.00361295]
[1747466305443,4.55290544,2498.2,2497.7,7.36974293]
[1747466305643,0.55,2498.2,2497.8,4.00350762]
[1747466307379,4.55288814,2498.2,2497.7,7.36972536]
[1747466307581,10.08,2498.1,2497.7,7.36972536]
[1747466308188,14.08304899,2498.1,2497.7,7.36972536]
[1747466308481,10.08,2498.1,2497.6,11.56876346]
[1747466308882,10.08,2498.1,2497.7,4.00366734]
[1747466309881,10.08,2498.1,2497.6,7.565]
[1747466309882,4.55332056,2498.0,2497.6,7.565]
[1747466310086,10.08,2498.1,2497.6,7.565]
[1747466310583,0.55,2498.1,2497.6,7.565]
[1747466311099,4.5530908,2498.1,2497.6,11.5687851]
[1747466311468,4.00330211,2498.0,2497.6,7.565]
[1747466312985,4.65582711,2497.9,2497.7,7.565]
[1747466313192,10.08,2497.6,2497.5,17.285]
[1747466313394,10.08,2497.6,2497.5,24.849]
[1747466314586,10.08,2497.6,2497.5,28.853004]
[1747466314791,10.08,2497.6,2497.5,29.654904]
[1747466314959,10.08,2497.6,2497.5,33.02081052]
[1747466315907,10.08,2497.6,2497.5,29.01680652]
[1747466316088,10.08,2497.6,2497.5,25.6509]
[1747466316488,10.08,2497.8,2497.5,25.6509]
[1747466316995,10.08,2497.8,2497.5,24.849]
[1747466317187,14.08354164,2497.8,2497.6,7.564]
[1747466318571,10.08,2497.8,2497.6,7.564]
[1747466321294,10.08,2497.8,2497.6,14.4530982]
[1747466321469,10.08,2497.8,2497.6,15.2752982]
[1747466321802,10.08,2497.8,2497.6,8.3862]
[1747466322602,4.00324172,2498.0,2497.6,8.3862]
[1747466322603,10.08,2497.9,2497.6,8.3862]
[1747466324205,10.08,2497.9,2497.6,12.389933]
[1747466325503,14.08322714,2498.0,2497.6,8.3862]
[1747466325721,4.00343929,2497.9,2497.6,7.564]
[1747466325871,4.00343929,2497.9,2497.5,17.285]
[1747466326072,4.00343929,2497.9,2497.6,7.564]
[1747466326604,4.00343929,2497.9,2497.5,17.285]
[1747466326799,4.00343929,2497.9,2497.6,7.564]
[1747466327816,4.00343929,2497.9,2497.5,17.285]
[1747466328017,4.00343929,2497.9,2497.6,7.564]
[1747466328195,14.08321748,2498.0,2497.6,7.564]
[1747466328721,10.08,2497.9,2497.6,11.56782031]
[1747466329317,10.08,2497.9,2497.6,10.93189547]
[1747466329500,10.08,2497.9,2497.8,4.0035231]
[1747466333400,10.08,2497.9,2497.7,4.00365176]
[1747466333608,10.08,2497.9,2497.6,11.56774345]
[1747466333897,10.08,2497.9,2497.7,4.0036405]
[1747466334096,10.08,2497.9,2497.8,7.564]
[1747466334524,10.08,2498.0,2497.8,7.564]
[1747466336100,10.08,2498.0,2497.7,4.0036405]
[1747466336431,10.08,2498.0,2497.9,7.564]
[1747466343541,10.08,2498.1,2497.9,11.56736282]
[1747466343717,10.08,2498.1,2498.0,4.00320256]
[1747466344642,10.71915884,2498.3,2498.1,4.00304231]
[1747466344945,10.08,2498.3,2498.2,4.00288207]
[1747466345110,10.08,2498.6,2498.3,4.00270605]
[1747466345309,10.08,2498.6,2498.4,7.563]
[1747466345742,0.55,2498.5,2497.9,0.8311]
[1747466345978,4.00263283,2498.4,2498.0,7.563]
[1747466346305,4.00263283,2498.4,2497.9,4.83439189]
[1747466346509,4.00263283,2498.4,2498.0,7.563]
[1747466346710,4.65503283,2498.4,2498.0,7.563]
[1747466346909,4.00288207,2498.2,2497.7,4.83471789]
[1747466347150,10.08,2498.1,2497.8,7.563]
[1747466347336,10.08,2498.1,2497.9,4.00328518]
[1747466348343,10.08,2498.1,2497.8,7.563]
[1747466348551,10.08,2498.1,2497.9,4.00333987]
[1747466351966,10.08,2498.1,2497.8,4.00347207]
[1747466352121,14.08312156,2498.1,2497.6,4.00376122]
[1747466352456,14.73552156,2498.1,2497.7,7.563]
[1747466352630,10.08,2498.0,2497.7,7.563]
[1747466353031,10.08,2498.0,2497.7,11.56666103]
[1747466353847,10.08,2498.0,2497.7,7.563]
[1747466355554,10.08,2498.0,2497.7,11.56667526]
[1747466355739,10.08,2498.0,2497.7,7.563]
[1747466357157,10.08,2498.0,2497.8,4.00344569]
[1747466358756,10.08,2498.2,2497.8,4.00344569]
[1747466361455,14.08288892,2498.2,2497.8,4.00344569]
[1747466362333,14.08288892,2498.2,2497.7,11.56659902]
[1747466362663,4.00307405,2498.1,2497.7,11.56660505]
[1747466362964,4.00304272,2498.1,2497.8,7.563]
[1747466363164,10.08,2498.2,2497.8,7.563]
[1747466363657,11.61743141,2498.2,2497.9,7.563]
[1747466363863,4.00325651,2498.0,2497.9,7.563]
[1747466364233,7.07025651,2498.0,2497.9,7.563]
[1747466366175,7.07021354,2498.0,2497.9,7.563]
[1747466366481,2.517,2498.0,2497.9,7.563]
[1747466367341,2.517,2498.0,2497.9,12.38856282]
[1747466367579,2.517,2498.0,2497.9,13.6274191]
[1747466376554,2.517,2498.7,2498.5,4.00226981]
[1747466376765,2.517,2498.7,2498.6,7.56]
[1747466376968,2.74132487,2498.7,2498.6,7.56]
[1747466379666,4.32693912,2498.7,2498.6,7.56]
[1747466380571,4.75963303,2498.7,2498.6,7.56]
[1747466381989,4.75963303,2498.7,2498.6,7.20868418]
[1747466382186,5.30963303,2498.7,2498.6,7.20868418]
[1747466382386,4.65480144,2498.5,2498.4,24.842]
[1747466382579,10.15407349,2498.5,2498.4,24.842]
[1747466382975,6.37599692,2498.5,2498.4,24.842]
[1747466384097,4.32693912,2498.5,2498.4,28.84456163]
[1747466384890,4.10261425,2498.5,2498.4,28.84456163]
[1747466386008,2.517,2498.5,2498.4,37.23176163]
[1747466386205,4.10261425,2498.5,2498.4,22.11376163]
[1747466386359,4.10261425,2498.5,2498.4,39.84440872]
[1747466387057,4.10261425,2498.5,2498.4,24.72540872]
[1747466387263,4.10261425,2498.5,2498.4,39.84340872]
[1747466387465,4.10261425,2498.5,2498.4,22.11376163]
[1747466387815,4.10261425,2498.5,2498.4,24.842]
[1747466388294,4.32693912,2498.5,2498.4,24.842]
[1747466390514,4.32693912,2498.5,2498.4,28.84456163]
[1747466390808,4.32693912,2498.5,2498.4,29.64526163]
[1747466391371,4.10261425,2498.5,2498.4,29.64526163]
[1747466391706,4.10261425,2498.5,2498.4,28.84456163]
[1747466393516,4.32693912,2498.5,2498.4,28.84456163]
[1747466394387,4.10261425,2498.5,2498.4,28.84456163]
[1747466396310,4.32693912,2498.5,2498.4,28.84456163]
[1747466401419,4.32693912,2498.5,2498.4,24.842]
[1747466401711,5.41203303,2498.5,2498.4,24.842]
[1747466402896,2.74132487,2498.5,2498.4,28.84456163]
[1747466403329,2.74132487,2498.5,2498.4,36.40156163]
[1747466404390,2.74132487,2498.5,2498.4,37.21276163]
[1747466405722,2.517,2498.5,2498.4,37.21276163]
[1747466405895,0.22432487,2498.7,2498.6,4.81344125]
[1747466406098,0.22432487,2498.7,2498.6,12.81344125]
[1747466406619,1.58561425,2498.9,2498.8,4.00192092]
[1747466406791,1.58561425,2498.9,2498.8,19.11592092]
[1747466406996,1.58561425,2498.9,2498.8,4.00192092]
[1747466407342,1.58561425,2498.9,2498.6,4.81339825]
[1747466407495,1.58561425,2498.9,2498.8,11.55892092]
[1747466407846,1.58561425,2498.9,2498.7,7.557]
[1747466407847,0.6524,2498.8,2498.7,7.557]
[1747466408118,2.23801425,2498.8,2498.7,7.557]
[1747466408627,2.23801425,2498.8,2498.4,21.28550621]
[1747466408829,3.1694,2498.8,2498.7,7.556]
[1747466409045,4.75501425,2498.8,2498.7,7.556]
[1747466409189,4.32702858,2498.8,2498.7,11.55808108]
[1747466410329,4.32702858,2498.8,2498.7,13.11411131]
[1747466411002,4.10261425,2498.8,2498.7,13.11411131]
[1747466411209,4.10261425,2498.8,2498.7,13.89551131]
[1747466412236,2.517,2498.8,2498.7,13.89551131]
[1747466412440,2.517,2498.8,2498.7,21.45151131]
[1747466414938,2.517,2499.1,2499.0,4.00160064]
[1747466415120,2.517,2499.1,2499.0,4.80760064]
[1747466416010,2.517,2499.1,2499.0,19.91860064]
[1747466417625,2.517,2499.1,2499.0,4.80760064]
[1747466417825,2.517,2499.1,2499.0,19.91760064]
[1747466418041,2.517,2499.1,2499.0,22.52067589]
[1747466420772,2.517,2499.1,2499.0,4.80760064]
[1747466420976,2.517,2499.1,2499.0,19.11160064]
[1747466423778,2.517,2499.1,2499.0,19.90100064]
[1747466424059,1.58561425,2499.4,2499.3,4.00112031]
[1747466424271,1.58561425,2499.4,2499.3,21.27712031]
[1747466426836,1.58561425,2499.4,2499.3,36.38612031]
[1747466427037,1.58561425,2499.4,2499.3,28.83212031]
[1747466427670,4.10261425,2499.4,2499.3,28.83212031]
[1747466427840,4.32702858,2499.4,2499.3,28.83212031]
[1747466431202,4.32702858,2499.4,2499.3,17.276]
[1747466431339,9.47833167,2499.4,2499.3,17.276]
[1747466432539,5.47737144,2499.4,2499.3,17.276]
[1747466433744,5.47737144,2499.4,2499.2,7.554]
[1747466434174,2.74141433,2499.4,2499.3,4.00112031]
[1747466434471,4.32702858,2499.4,2499.3,4.00112031]
[1747466436242,4.32702858,2499.4,2499.3,4.79662031]
[1747466436646,4.32702858,2499.4,2499.3,4.00112031]
[1747466437162,4.32702858,2499.4,2499.3,11.55512031]
[1747466437359,5.41213144,2499.4,2499.3,7.554]
[1747466437564,9.41310275,2499.4,2499.3,7.554]
[1747466438338,9.41310275,2499.4,2498.9,4.00168233]
[1747466438544,0.6524,2498.8,2498.7,24.829]
[1747466438754,4.75501425,2498.8,2498.7,24.829]
[1747466439279,4.97942858,2498.8,2498.7,24.829]
[1747466443345,9.63785378,2498.8,2498.7,24.829]
[1747466444675,10.18785378,2498.8,2498.7,24.829]
[1747466444878,10.18785378,2498.8,2498.7,24.83]
[1747466445052,10.18785378,2498.8,2498.7,17.275]
[1747466445053,6.18593286,2498.8,2498.7,17.275]
[1747466445555,6.18593286,2498.8,2498.6,7.555]
[1747466446147,0.22441433,2498.7,2498.6,11.55716211]
[1747466447383,4.10261425,2498.8,2498.7,4.00208108]
[1747466447774,4.10261425,2498.8,2498.6,11.55718031]
[1747466448283,4.10261425,2498.8,2498.6,7.555]
[1747466448452,4.10261425,2498.8,2498.7,4.00208108]
[1747466449350,2.517,2498.8,2498.7,4.00208108]
[1747466449683,2.517,2498.8,2498.7,6.3736105]
[1747466449882,2.517,2498.8,2498.7,14.4136238]
[1747466450191,0.22397908,2499.2,2499.1,4.00144051]
[1747466450362,0.22397908,2499.2,2499.1,37.20604051]
[1747466450562,2.517,2499.4,2499.3,4.00112031]
[1747466450758,2.517,2499.4,2499.3,6.64430359]
[1747466451060,2.517,2499.4,2499.3,7.41989637]
[1747466456398,0.22397908,2499.7,2499.6,4.8162401]
[1747466456560,2.517,2500.0,2499.9,4.00016]
[1747466458285,2.517,2500.0,2499.9,7.554]
[1747466458659,2.517,2500.0,2499.9,11.55416]
[1747466459986,3.1694,2500.0,2499.6,4.00063082]
[1747466460165,3.1694,2500.0,2499.8,4.00030397]
[1747466460364,7.16947488,2500.0,2499.5,4.00073048]
[1747466460669,3.04365252,2499.7,2499.6,11.55359546]
[1747466460872,3.04365252,2499.7,2499.6,7.553]
[1747466461058,4.65313705,2499.6,2499.4,7.553]
[1747466461256,1.02137896,2499.5,2499.4,7.553]
[1747466461461,0.87637908,2499.6,2499.4,7.553]
[1747466461661,0.6524,2499.6,2499.4,7.553]
[1747466462387,0.87637908,2499.6,2499.4,7.553]
[1747466463904,0.87637908,2499.6,2499.5,4.00080016]
[1747466464111,0.22397908,2499.6,2499.5,4.00080016]
[1747466464395,5.56065252,2499.7,2499.5,4.00080016]
[1747466464596,5.56065252,2499.7,2499.6,4.0006401]
[1747466464777,2.517,2499.7,2499.6,4.0006401]
[1747466465289,2.517,2499.7,2499.6,5.55608413]
[1747466465460,2.517,2499.7,2499.6,6.35258413]
[1747466465665,2.517,2499.7,2499.6,6.39258643]
[1747466465866,2.517,2499.7,2499.6,6.35258413]
[1747466466297,2.517,2499.7,2499.6,21.47858413]
[1747466467900,2.517,2499.7,2499.6,6.35258413]
[1747466468202,2.517,2499.7,2499.6,21.48058413]
[1747466468390,2.517,2499.7,2499.6,21.47858413]
[1747466469590,2.517,2500.2,2500.1,3.99984]
[1747466469807,2.517,2500.2,2500.1,11.55884]
[1747466472566,2.517,2500.2,2500.1,30.38572146]
[1747466472771,2.517,2500.2,2500.1,38.74302146]
[1747466473791,2.517,2500.2,2500.1,38.74202146]
[1747466473996,2.517,2500.2,2500.1,36.39684]
[1747466477807,2.517,2500.2,2500.1,21.27084]
[1747466477992,2.517,2500.2,2500.1,36.38984]
[1747466478318,1.27784273,2501.8,2500.6,3.99904023]
[1747466478526,1.27784273,2501.8,2501.7,4.78658184]
[1747466478675,1.27784273,2501.8,2501.7,45.37658184]
[1747466478881,1.27784273,2501.8,2501.7,49.34635284]
[1747466479113,3.81239908,2502.9,2502.6,3.99584432]
[1747466479420,10.90217851,2502.7,2502.6,7.30825973]
[1747466479741,18.90217851,2502.7,2502.6,7.30825973]
[1747466479905,19.45217851,2502.7,2502.6,7.30825973]
[1747466480122,3.99646744,2502.3,2501.7,18.0583]
[1747466480280,16.24173718,2502.7,2501.8,11.55303691]
[1747466480281,3.04365252,2502.1,2501.8,11.55303691]
[1747466480780,3.04365252,2502.1,2501.8,3.99703691]
[1747466480984,3.04365252,2502.1,2501.9,7.556]
[1747466481184,3.04365252,2502.1,2501.8,3.99703691]
[1747466481386,3.04365252,2502.1,2501.9,7.556]
[1747466481732,3.45322245,2502.1,2502.0,7.556]
[1747466483431,3.45322245,2502.1,2501.7,17.269]
[1747466483612,3.04365252,2501.8,2501.7,17.269]
[1747466483818,3.04365252,2501.8,2501.7,24.823]
[1747466485105,7.04077459,2501.8,2501.7,24.823]
[1747466485305,9.34693504,2501.8,2501.7,17.269]
[1747466485495,9.34693504,2501.8,2501.7,24.823]
[1747466488623,5.34981297,2501.8,2501.7,24.823]
[1747466490417,9.34693504,2501.8,2501.7,24.823]
[1747466490615,11.86393504,2501.8,2501.7,24.823]
[1747466491932,7.86681297,2501.8,2501.7,24.823]
[1747466495967,19.86393504,2501.8,2501.7,11.8142827]
[1747466496166,14.66441297,2501.8,2501.7,11.8142827]
[1747466496340,13.56065252,2501.8,2501.7,11.8142827]
[1747466496659,13.56065252,2501.8,2501.7,4.2602827]
[1747466496858,13.56065252,2501.8,2501.7,11.9752827]
[1747466497356,18.10777459,2501.8,2501.7,11.9752827]
[1747466497562,20.97064839,2501.8,2501.7,4.2602827]
[1747466498463,16.42352632,2501.8,2501.7,4.2602827]
[1747466499341,13.56065252,2501.8,2501.7,4.2602827]
[1747466500258,13.56065252,2501.8,2501.7,8.25756454]
[1747466500259,5.56065252,2501.8,2501.7,8.25756454]
[1747466502331,3.04365252,2502.3,2502.0,3.99675999]
[1747466502654,3.04365252,2502.3,2502.1,11.71150891]
[1747466502956,3.04365252,2502.3,2502.1,7.715]
[1747466504634,3.74761872,2502.3,2502.0,3.99674307]
[1747466504838,3.74761872,2502.3,2502.1,7.714]
[1747466505027,3.04365252,2502.3,2502.1,7.714]
[1747466505226,3.04365252,2502.3,2502.1,11.71054783]
[1747466505460,3.04365252,2502.3,2502.2,3.99648309]
[1747466505662,5.56065252,2502.3,2502.2,4.75758309]
[1747466505831,5.56065252,2502.3,2502.2,7.714]
[1747466506956,5.56065252,2502.3,2502.1,3.99659489]
[1747466507151,5.56065252,2502.3,2502.2,7.714]
[1747466507470,5.56065252,2502.3,2502.2,11.71048309]
[1747466507969,2.517,2502.3,2502.2,11.71048309]
[1747466508177,2.517,2502.3,2502.2,13.35731597]
[1747466509936,5.56065252,2502.3,2502.2,7.714]
[1747466510135,5.56065252,2502.3,2502.0,4.75779251]
[1747466510349,5.56065252,2502.3,2502.2,7.713]
[1747466512172,5.56065252,2502.3,2502.1,3.99663975]
[1747466512352,5.56065252,2502.3,2502.2,7.713]
[1747466512549,6.11671777,2502.3,2502.2,7.713]
[1747466515768,5.56065252,2502.3,2502.2,11.70948309]
[1747466518148,5.56065252,2502.3,2502.2,7.713]
[1747466520446,6.21305252,2502.3,2501.8,4.76874819]
[1747466520676,3.1694,2502.3,2502.2,7.713]